[Event "13th KIIT Festival-A 2022"]
[Site "Bhubaneswar"]
[Date "2022.05.25"]
[Round "5.19"]
[White "Praloy Sahoo"]
[Black "Daaevik Wadhawan"]
[Result "1-0"]
[ECO "B50"]
[WhiteElo "2065"]
[BlackElo "1603"]
[Annotator "TA"]
[PlyCount "99"]
[EventDate "2022.05.15"]
[EventType "swiss"]
[EventCountry "IND"]
[SourceTitle "playchess.com"]
[Source "ChessBase"]
[SourceQuality "1"]
[TimeControl "5400+30"]

{[%evp 9,99,6,21,0,0,0,29,25,33,40,33,37,32,8,10,-1,16,18,27,19,22,18,16,0,3,7,231,222,225,225,225,214,222,240,240,233,349,242,213,234,322,308,297,298,309,309,295,268,254,274,287,277,269,254,256,253,247,234,370,356,364,353,436,426,650,633,754,743,952,947,1020,979,905,825,2772,2277,12840,12840,12839,12836,12842,12843,12843,12844,12844,12845,12845,12845,29988,12844,12845,12845]} 1. e4 {[%emt 0:00:03]} c5 {[%emt 0:00:08]} 2. Nf3 {[%emt 0:00:20][%cal Bg1f3,Bf3e5,Be5c4][%mdl 32]} d6 {[%emt 0:00:11]} 3. Nc3 {[%emt 0:00:35]} Nf6 {[%emt 0:00:09]} 4. e5 {[%emt 0:00:16]} dxe5 {[%emt 0:00:07]} 5. Nxe5 {[%emt 0:00:06]} e6 {[%emt 0:01:20]} 6. g3 {[%emt 0:00:23] B50: Sicilian: 2...d6, Miscellaneous.} (6. Bb5+ {seems wilder.} Nbd7 7. d4 a6 8. Bxd7+ Bxd7 9. Be3) 6... Qc7 {[%emt 0:03:55]} 7. Qe2 {[%emt 0:08:10]} a6 {[%emt 0:06:09] Inhibits Nb5.} 8. Bg2 {[%emt 0:00:28] White has an edge.} Bd6 {[%emt 0:08:44]} 9. Nc4 {[%emt 0:01:27]} Nc6 {[%emt 0:00:42] [#]} 10. d3 $146 {[%emt 0:04:46]} ({Predecessor:} 10. Nxd6+ Qxd6 11. O-O Nd4 12. Qd1 O-O 13. d3 e5 14. h3 c4 15. dxc4 Bf5 16. Be3 {1-0 (41) Kreisl,R (2424)-Salar,M (2256) Ahvaz 2019}) 10... Bd7 {[%emt 0:06:08]} 11. Ne4 {[%emt 0:14:00]} Nxe4 {[%emt 0:01:03]} 12. dxe4 {[%emt 0:01:48]} Rd8 {[%emt 0:13:47]} 13. Nxd6+ {[%emt 0:08:12]} Qxd6 {[%emt 0:00:02]} 14. Qd2 {[%emt 0:00:04]} Qxd2+ {[%emt 0:02:21]} 15. Bxd2 {[%emt 0:00:10]} e5 {[%emt 0:03:12]} 16. f4 {[%emt 0:06:30]} Nd4 {[%emt 0:05:50]} 17. Rc1 {[%emt 0:05:55]} Bh3 $2 {[%emt 0:10:21] Black cannot hold the game after this.} 18. Bxh3 $18 {[%emt 0:01:44]} Nf3+ {[%emt 0:00:01] [#]} 19. Ke2 $1 {[%emt 0:00:56]} Nxd2 {[%emt 0:00:12]} 20. Rcd1 {[%emt 0:05:24]} Nxe4 {[%emt 0:05:00]} 21. Rxd8+ {[%emt 0:00:20]} Kxd8 {[%emt 0:00:01][%mdl 4096] Endgame [#] KRB-KRN} 22. Rd1+ $1 {[%emt 0:00:07]} (22. fxe5 Ng5 23. Bg2 Re8 $14) 22... Ke8 {[%emt 0:02:35]} (22... Kc7 $142) 23. fxe5 {[%emt 0:00:17] Threatens to win with Bd7+.} Ng5 {[%emt 0:00:56]} 24. Bc8 {[%emt 0:01:39]} f6 {[%emt 0:07:37]} 25. h4 {[%emt 0:06:55]} (25. Bxb7 fxe5 26. Rd5 Ke7 27. Bxa6 (27. Rxe5+ Ne6 $18) 27... Rb8 28. Rxe5+ Kf6 29. Rxc5 Rxb2 $18) 25... Nf7 {[%emt 0:00:02]} 26. exf6 {[%emt 0:00:34]} ({Not} 26. Bxb7 Nxe5 27. Bxa6 Ke7 $16) 26... gxf6 {[%emt 0:00:20]} 27. Bxb7 {[%emt 0:00:03]} Rg8 {[%emt 0:02:14]} 28. Bc6+ {[%emt 0:00:10]} ({Don't do} 28. Bxa6 $6 Rxg3 29. Rd5 Ne5 30. Rxc5 Rg2+ 31. Ke3 Ke7 $18) 28... Kf8 {[%emt 0:00:14]} 29. Kf2 {[%emt 0:00:43]} Rg4 {[%emt 0:05:06]} 30. b3 {[%emt 0:03:34][%cal Bb2b3,Bb3c4,Bc4c5,Bc5c6][%mdl 32]} Rb4 {[%emt 0:02:18]} 31. a3 {[%emt 0:03:59]} Rb6 {[%emt 0:00:09]} 32. Be4 {[%emt 0:00:08]} h6 {[%emt 0:01:22]} 33. Rd7 {[%emt 0:01:14]} Ne5 {[%emt 0:03:22]} (33... Nd6 $142) 34. Rc7 {[%emt 0:00:07]} c4 {[%emt 0:00:37]} 35. bxc4 {[%emt 0:00:03]} f5 {[%emt 0:00:47]} 36. Bd3 {[%emt 0:00:34]} Nxd3+ {[%emt 0:04:28]} (36... Re6 $142 37. Rc5 (37. Bxf5 Rf6 $18) 37... Kg7 38. Bxf5 Re7) 37. cxd3 {[%emt 0:00:09] KR-KR} Rb3 {[%emt 0:00:02]} 38. Ke3 {[%emt 0:00:07]} Rxa3 {[%emt 0:00:01]} 39. Rh7 {[%emt 0:00:20]} a5 {[%emt 0:00:09]} 40. c5 {[%emt 0:00:01] Black must now prevent c6.} Ke8 {[%emt 0:00:15]} 41. Kd4 {[%emt 0:00:06]} Ra4+ {[%emt 0:00:25]} 42. Kd5 {[%emt 0:00:04]} Rg4 {[%emt 0:00:12]} 43. c6 {[%emt 0:00:04]} Kd8 {[%emt 0:00:08]} 44. Kc5 {[%emt 0:00:35]} a4 {[%emt 0:01:01]} 45. d4 {[%emt 0:00:13][%cal Bd3d4,Bd4d5,Bd5d6][%mdl 32]} a3 {[%emt 0:03:29]} 46. d5 {[%emt 0:00:21] White wants to mate with d6.} a2 {[%emt 0:00:06]} 47. Ra7 {[%emt 0:00:28] White threatens d6 and mate.} Rxg3 {[%emt 0:00:11]} 48. Rxa2 {[%emt 0:00:03] Intending d6 and mate.} Rg1 {[%emt 0:00:16]} 49. Ra8+ {[%emt 0:00:06]} (49. d6 $142 Rc1+ 50. Kd5 Ke8 51. Ra8+ Kf7 52. c7 Kf6 53. Rf8+ Kg6 54. c8=Q) 49... Ke7 {[%emt 0:00:04]} 50. d6+ {[%emt 0:31:09] Weighted Error Value: White=0.08 (flawless) /Black=0.63} 1-0

[Event "13th KIIT Festival-A 2022"]
[Site "Bhubaneswar"]
[Date "2022.05.26"]
[Round "6.1"]
[White "Aleksandrov, Aleksej"]
[Black "Stupak, Kirill"]
[Result "1/2-1/2"]
[ECO "D20"]
[WhiteElo "2492"]
[BlackElo "2440"]
[Annotator "TA"]
[PlyCount "25"]
[EventDate "2022.05.15"]
[EventType "swiss"]
[EventCountry "IND"]
[SourceTitle "playchess.com"]
[Source "ChessBase"]
[SourceQuality "1"]
[TimeControl "5400+30"]

{[%evp 24,25,0,0]} 1. d4 {[%emt 0:00:02]} d5 {[%emt 0:00:01]} 2. c4 {[%emt 0:00:05]} dxc4 {[%emt 0:00:04]} 3. e4 {[%emt 0:00:02][%cal Be2e4,Be4e5][%mdl 32]} Nf6 {[%emt 0:00:04]} 4. e5 {[%emt 0:00:02]} Nd5 {[%emt 0:00:05]} 5. Bxc4 {[%emt 0:00:03]} Nc6 {[%emt 0:00:07]} 6. Nf3 {[%emt 0:00:03]} Nb6 {[%emt 0:00:04]} 7. Bb3 {[%emt 0:00:03]} Bg4 {[%emt 0:00:04]} 8. Ng5 {[%emt 0:00:04]} Bxd1 {[%emt 0:00:05]} 9. Bxf7+ {[%emt 0:00:05]} Kd7 {[%emt 0:00:02]} 10. Be6+ {[%emt 0:00:03]} Ke8 {[%emt 0:00:04]} 11. Bf7+ {[%emt 0:00:04]} Kd7 {[%emt 0:00:03]} 12. Be6+ {[%emt 0:00:16]} Ke8 {[%emt 0:00:01]} 13. Bf7+ {[%emt 1:36:08]} 1/2-1/2

[Event "13th KIIT Festival-A 2022"]
[Site "Bhubaneswar"]
[Date "2022.05.26"]
[Round "6.2"]
[White "Amonatov, Farrukh"]
[Black "Nitin, S.."]
[Result "1-0"]
[ECO "B77"]
[WhiteElo "2622"]
[BlackElo "2399"]
[Annotator "TA"]
[PlyCount "59"]
[EventDate "2022.05.15"]
[EventType "swiss"]
[EventCountry "IND"]
[SourceTitle "playchess.com"]
[Source "ChessBase"]
[SourceQuality "1"]
[TimeControl "5400+30"]

{[%evp 23,59,23,32,20,28,28,105,104,170,164,160,61,187,187,181,179,172,177,176,151,213,201,198,195,293,278,383,377,569,565,554,547,589,579,620,601,1488,1499]} 1. e4 {[%emt 0:02:34]} c5 {[%emt 0:00:33]} 2. Nf3 {[%emt 0:00:07]} g6 {[%emt 1:30:57]} 3. d4 {[%emt 0:00:25]} cxd4 {[%emt 0:00:00]} 4. Nxd4 {[%emt 0:00:13]} Nc6 {[%emt 0:00:00]} 5. Nc3 {[%emt 0:00:07]} Bg7 {[%emt 0:00:00]} 6. Be3 {[%emt 0:00:26]} Nf6 {[%emt 0:00:00]} 7. Bc4 {[%emt 0:00:07]} O-O {[%emt 0:00:00]} 8. Bb3 {[%emt 0:00:04]} d6 {[%emt 0:00:00]} 9. f3 {[%emt 0:00:07]} Qa5 {[%emt 0:00:00]} 10. Qd2 {[%emt 0:02:22]} Nxd4 {[%emt 0:00:00]} 11. Bxd4 {[%emt 0:00:07]} Be6 {[%emt 0:00:00]} 12. O-O-O {[%emt 0:01:50]} b5 {[%emt 0:00:00][%cal Bb7b5,Bb5b4][%mdl 32]} 13. Kb1 {[%emt 0:00:33] B77: Sicilian Dragon: Yugoslav Attack, 9 Bc4 sidelines.} b4 {[%emt 0:00:00]} 14. Nd5 {[%emt 0:05:47]} Nxd5 {[%emt 0:00:00]} (14... Bxd5 $11 {keeps the balance.} 15. exd5 (15. Bxd5 Nxd5 16. exd5 Qxd5 $11) 15... Qb5) 15. Bxg7 $16 {[%emt 0:01:39] White is better.} (15. Bxd5 $6 Bxd5 16. exd5 Qxd5 $11) 15... Kxg7 {[%emt 0:00:00] [#]} (15... Nc3+ $16 16. bxc3 Kxg7) 16. exd5 $146 {[%emt 0:01:33]} (16. Bxd5 $6 Rac8 $14) ({Predecessor:} 16. Bxd5 Rac8 17. Bxe6 fxe6 18. Rhe1 e5 19. Qd5 Rc5 20. Qb7 Kf6 21. Re3 Rfc8 22. Rd5 {0-1 (28) Thompson-Barry corr 1979}) 16... Bd7 {[%emt 0:00:00]} 17. Rhe1 {[%emt 0:02:12]} (17. h4 $16) 17... Qd8 {[%emt 0:00:00] A mistake that costs the game.} (17... Qc5 $1 $14) 18. Qxb4 {[%emt 0:01:27]} a5 {[%emt 0:00:00]} 19. Qd4+ {[%emt 0:02:38]} Kg8 {[%emt 0:00:00]} 20. h4 {[%emt 0:03:56][%cal Bh2h4,Bh4h5][%mdl 32]} Rb8 {[%emt 0:00:00]} 21. h5 {[%emt 0:05:33]} Rb4 {[%emt 0:00:00] [#]} (21... gxh5 $16 {was worth a try.} 22. Qe4 f6) 22. Qd2 $1 {[%emt 0:00:34]} Rb7 {[%emt 0:00:00]} 23. Re4 {[%emt 0:20:36] Against a4} Bf5 {[%emt 0:00:00]} (23... gxh5 {was necessary.} 24. Qg5+ Kh8 25. Qxh5 (25. Rxe7 a4 $14) 25... Rg8) 24. Rf4 {[%emt 0:06:19]} Re8 {[%emt 0:00:00]} 25. g4 {[%emt 0:02:18]} e5 {[%emt 0:00:00]} (25... Bc8 {was called for.} 26. Re4 gxh5) 26. dxe6 {[%emt 0:01:58] White is clearly winning.} Bxe6 {[%emt 0:00:00]} 27. hxg6 {[%emt 0:04:20]} hxg6 {[%emt 0:00:00]} 28. Rh1 {[%emt 0:05:40] [#] White wants to mate with Qd4.} Qg5 {[%emt 0:00:00]} 29. Qh2 {[%emt 0:00:28][%csl Gh1][%cal Rh2h8]} Kg7 {[%emt 0:00:00] Inhibits Qh8+.} 30. Bxe6 {[%emt 0:01:11] Weighted Error Value: White=0.07 (flawless) /Black=0.56} 1-0

[Event "13th KIIT Festival-A 2022"]
[Site "Bhubaneswar"]
[Date "2022.05.26"]
[Round "6.3"]
[White "Abdyjapar, Asyl"]
[Black "Paichadze, Luka"]
[Result "0-1"]
[ECO "D03"]
[WhiteElo "2346"]
[BlackElo "2567"]
[Annotator "TA"]
[PlyCount "96"]
[EventDate "2022.05.15"]
[EventType "swiss"]
[EventCountry "IND"]
[SourceTitle "playchess.com"]
[Source "ChessBase"]
[SourceQuality "1"]
[TimeControl "5400+30"]

{[%evp 9,96,17,25,20,25,26,37,39,40,33,33,26,37,39,31,44,37,10,16,0,21,0,0,-20,-22,-50,-13,-10,0,-19,-7,-12,-16,-71,-71,-115,-130,-123,-115,-125,-55,-58,-36,-17,-43,-52,-52,-52,-52,-52,-52,-52,-52,-52,-52,-52,-52,-52,-52,-52,-52,-52,-52,-52,-52,-52,-52,-109,-84,-838,-838,-29986,-29987,-29987,-435,-29988,-29989,-29989,-29990,-29990,-29991,-29991,-29992,-29992,-29993,-29993,-29994,-29994,-29995]} 1. d4 {[%emt 0:03:33]} Nf6 {[%emt 0:00:06]} 2. Bg5 {[%emt 0:00:04]} d5 {[%emt 0:01:49]} 3. e3 {[%emt 0:00:29]} c6 {[%emt 0:02:47]} 4. Nf3 {[%emt 0:01:33]} Bg4 {[%emt 0:00:56]} 5. Nbd2 {[%emt 0:03:46]} Ne4 {[%emt 0:05:00]} 6. Bf4 {[%emt 0:03:01] [#] D03: 1 d4 d5 2 Nf3 Nf6 3 Bg5, including Torre Attack with early ...d5.} Nxd2 $146 {[%emt 0:01:37]} ({Predecessor:} 6... Qb6 7. Qc1 Nxd2 8. Nxd2 Nd7 9. c4 e6 10. c5 Qd8 11. Bd3 e5 12. Bxe5 Nxe5 13. dxe5 {0-1 (56) Wilkins,M (1886)-Croad,N (2368) Wellington 2014}) 7. Qxd2 {[%emt 0:00:17]} Bxf3 {[%emt 0:00:29]} 8. gxf3 {[%emt 0:00:05] White is slightly better.} Nd7 {[%emt 0:00:08]} 9. O-O-O {[%emt 0:06:08]} e6 {[%emt 0:05:09]} 10. Kb1 {[%emt 0:01:35]} Nf6 {[%emt 0:06:45]} 11. c4 {[%emt 0:04:50]} Bd6 {[%emt 0:05:34]} 12. Bg3 {[%emt 0:03:30]} Qe7 {[%emt 0:04:35]} 13. cxd5 {[%emt 0:08:29]} Nxd5 {[%emt 0:02:22]} 14. e4 {[%emt 0:09:24]} Nb6 {[%emt 0:00:57]} 15. a3 {[%emt 0:07:21]} O-O-O {[%emt 0:01:28][%cal Ba8d8,Bd8d7,Bd7d6][%mdl 32]} 16. Qa5 {[%emt 0:05:00]} Kb8 {[%emt 0:04:28]} 17. Be2 {[%emt 0:00:11]} h5 {[%emt 0:07:56]} 18. h4 {[%emt 0:00:52]} g6 {[%emt 0:00:43]} 19. Rd2 {[%emt 0:04:48]} Rd7 {[%emt 0:01:03]} 20. Rhd1 {[%emt 0:00:44]} Rhd8 {[%emt 0:00:22]} 21. Ka2 {[%emt 0:02:33]} (21. Rd3 $11 {keeps the balance.}) 21... f5 $17 {[%emt 0:03:24] Threatens to win with ...f4.} 22. Bxd6+ {[%emt 0:06:58]} Rxd6 {[%emt 0:00:04]} 23. Qe5 {[%emt 0:00:12]} Qxh4 {[%emt 0:01:58]} 24. Rg1 {[%emt 0:02:27] [#]} Qxf2 {[%emt 0:09:14]} ({Better is} 24... g5 $1 $17 25. Bf1 Qf4 26. Qxf4 gxf4 27. exf5 exf5) 25. Rxg6 $15 {[%emt 0:00:15] [#]} Nc4 $1 {[%emt 0:01:25]} 26. Bxc4 {[%emt 0:00:52]} Qxd2 {[%emt 0:00:04]} 27. d5 {[%emt 0:05:42]} cxd5 {[%emt 0:00:59]} 28. Bxd5 {[%emt 0:05:14][%cal Og6g8] Hoping for Rg8!} fxe4 {[%emt 0:07:36]} 29. fxe4 {[%emt 0:00:21][%cal Og6g8] aiming for Rg8!} Qa5 {[%emt 0:01:14] And now ...Qc7 would win.} 30. Rxe6 {[%emt 0:00:22]} Qc7 {[%emt 0:00:12] Strongly threatening ...h4.} 31. Rxd6 {[%emt 0:00:45]} Qxd6 {[%emt 0:00:07]} 32. Qxh5 {[%emt 0:00:10][%mdl 4096] Endgame KQR-KQB} a6 {[%emt 0:00:25]} 33. Qh7 {[%emt 0:02:09][%csl Gd5][%cal Rh7b7]} Qb6 {[%emt 0:02:29]} 34. Qg7 {[%emt 0:02:11]} Ka7 {[%emt 0:01:50]} 35. Qe5 {[%emt 0:01:26]} Rc8 {[%emt 0:01:12]} 36. Qg7 {[%emt 0:01:26]} Rc7 {[%emt 0:00:09]} (36... Rc1 {feels hotter.} 37. Qf7 Rg1 38. Qe7 Rg3) 37. Qe5 {[%emt 0:00:24]} Qc5 {[%emt 0:03:03]} 38. Qf6 {[%emt 0:01:08] [#]} (38. Qf4 $15) 38... Qg1 $1 $17 {[%emt 0:02:24]} 39. Qe5 $2 {[%emt 0:03:23][%mdl 8192] This move loses the game for White.} (39. Kb3 $17) 39... Rc1 $19 {[%emt 0:01:41] White must now prevent ...Qd1.} 40. Qe7 {[%emt 0:00:34]} Ra1+ {[%emt 0:00:21]} 41. Kb3 {[%emt 0:00:02]} Qd1+ {[%emt 0:03:16]} (41... Qe3+ $142 42. Ka4 Qd4+ 43. Kb3 Qd3+ 44. Kb4 Qb5+ 45. Kc3 Rc1+ 46. Kd4 Qxb2+ 47. Ke3 Qc3+ 48. Kf4 Rf1+ 49. Kg4 Qf3+ 50. Kh4 Rh1+ 51. Kg5 Rg1+ 52. Kh6 Qh3+ 53. Qh4 Qxh4#) 42. Kb4 {[%emt 0:00:08]} (42. Kc3 $19 Qc1+ 43. Kd3 Qxb2 44. Qc5+ Qb6 45. Qxb6+ Kxb6 46. Kc4) 42... Qd4+ {[%emt 0:00:27] Black mates.} 43. Kb3 {[%emt 0:00:03]} Qd3+ {[%emt 0:00:35]} 44. Kb4 {[%emt 0:00:04]} Qb5+ {[%emt 0:00:15]} 45. Kc3 {[%emt 0:00:03]} Rc1+ {[%emt 0:00:05]} 46. Kd4 {[%emt 0:01:02]} Qxb2+ {[%emt 0:00:12]} 47. Ke3 {[%emt 0:00:06]} Qc3+ {[%emt 0:00:20]} 48. Kf4 {[%emt 0:00:05]} Rf1+ {[%emt 0:00:16] Weighted Error Value: White=0.66/Black=0.14 (very precise)} 0-1

[Event "13th KIIT Festival-A 2022"]
[Site "Bhubaneswar"]
[Date "2022.05.26"]
[Round "6.4"]
[White "Fedorov, Alexei"]
[Black "Rohith Krishna S"]
[Result "1-0"]
[ECO "C54"]
[WhiteElo "2529"]
[BlackElo "2337"]
[Annotator "TA"]
[PlyCount "77"]
[EventDate "2022.05.15"]
[EventType "swiss"]
[EventCountry "IND"]
[SourceTitle "playchess.com"]
[Source "ChessBase"]
[SourceQuality "1"]
[TimeControl "5400+30"]

{[%evp 12,77,19,16,39,25,39,10,35,12,22,10,68,47,36,47,41,39,45,53,45,47,120,127,128,120,148,87,101,88,183,170,164,168,238,130,434,434,433,425,495,362,393,385,391,376,385,372,358,351,319,194,1366,1187,1991,1510,12831,1995,29986,29987,29988,29989,29992,29991,29994,29989,12844,12844]} 1. e4 {[%emt 0:00:04]} e5 {[%emt 0:00:30]} 2. Nf3 {[%emt 0:00:07]} Nc6 {[%emt 0:00:05]} 3. Bc4 {[%emt 0:00:24]} Bc5 {[%emt 0:00:11]} 4. d3 {[%emt 0:00:12]} Nf6 {[%emt 0:00:20]} 5. Bg5 {[%emt 0:01:20]} h6 {[%emt 0:01:15]} 6. Bh4 {[%emt 0:00:06]} d6 {[%emt 0:08:07]} 7. c3 {[%emt 0:00:17] Nowadays more popular than 7.h3.} Bb6 {[%emt 0:01:50] C54: Giuoco Piano: 4 c3 Nf6, main lines with 5 d4 and 5 d3.} 8. a4 {[%emt 0:03:22]} a6 {[%emt 0:02:02]} 9. Nbd2 {[%emt 0:01:53]} Qe7 {[%emt 0:01:38] The position is equal.} (9... g5 $5 {[%cal Rg5h4]} 10. Bg3 O-O $11) 10. b4 {[%emt 0:00:28]} g5 {[%emt 0:08:03]} 11. Bg3 {[%emt 0:00:11] [#]} Nh7 $146 {[%emt 0:02:39]} (11... Nh5 $11) ({Predecessor:} 11... Be6 12. O-O O-O 13. Re1 Nh7 14. Bxe6 Qxe6 15. Nc4 Ba7 16. b5 Ne7 17. Rb1 axb5 18. axb5 {1-0 (83) Adhiban,B (2629)-Stefanova,A (2485) Riga 2021}) 12. a5 {[%emt 0:04:01]} Ba7 {[%emt 0:00:46]} 13. b5 {[%emt 0:00:18]} axb5 {[%emt 0:10:45]} 14. Bxb5 {[%emt 0:00:06]} O-O {[%emt 0:01:18]} 15. O-O {[%emt 0:03:27]} Qf6 {[%emt 0:14:11]} 16. a6 $36 {[%emt 0:04:51][%mdl 2048] White fights for an advantage.} Ne7 {[%emt 0:05:34] [#]} (16... h5 $14) 17. d4 $1 $16 {[%emt 0:02:23]} exd4 {[%emt 0:00:13] [#]} 18. e5 $1 {[%emt 0:16:41] White is more active.} (18. Nxd4 $6 bxa6 19. Bd3 Ng6 $11) 18... Qg6 {[%emt 0:00:07]} (18... dxe5 19. Bxe5 Qf5 20. Re1 $14 (20. cxd4 Bxd4 21. Bxd4 Qxb5 $14)) 19. axb7 {[%emt 0:02:12]} (19. Nxd4 $6 bxa6 20. exd6 cxd6 $14) (19. exd6 $142 cxd6 20. cxd4 (20. Nxd4 bxa6 21. Nc6 Nxc6 $14)) 19... Bxb7 {[%emt 0:00:06]} 20. cxd4 {[%emt 0:00:10] Threatens to win with Re1.} h5 {[%emt 0:16:46]} (20... dxe5 $16 21. Nxe5 (21. Bxe5 g4 $14) 21... Qg7) 21. exd6 $18 {[%emt 0:06:07]} cxd6 {[%emt 0:00:13]} 22. Re1 {[%emt 0:00:13]} Nc6 {[%emt 0:06:24]} (22... Nc8 {was necessary.}) 23. Nc4 {[%emt 0:05:59]} (23. Ne4 $18) 23... g4 $2 {[%emt 0:03:09][%mdl 8192] Loses the game.} (23... Qf6 $16 {is tougher.}) 24. Nh4 {[%emt 0:01:22]} Qf6 {[%emt 0:01:07]} 25. Nxd6 {[%emt 0:06:32][%cal Bc4d6,Bd6f5,Bf5e7][%mdl 32]} Nxd4 {[%emt 0:07:29]} 26. Rxa7 {[%emt 0:02:06]} (26. Nxb7 Nxb5 27. Ra5 Nc3 $16) 26... Rxa7 {[%emt 0:00:46]} 27. Be5 {[%emt 0:00:06][%cal Bg3e5,Be5d4,Bd4a7][%mdl 32]} Qxh4 {[%emt 0:01:47]} 28. Bxd4 {[%emt 0:01:53] Dancing on a razor blade.} Bxg2 {[%emt 0:01:29][%cal Oh7g5] aiming for ...Ng5!} 29. Bxa7 {[%emt 0:02:47] A strong pair of Bishops.} Ng5 {[%emt 0:01:45]} 30. Nf5 {[%emt 0:01:22]} (30. Kxg2 $2 Qh3+ 31. Kg1 (31. Kh1 $2 Nf3 $19) 31... Nf3+ 32. Qxf3 gxf3 $19) 30... Qh3 {[%emt 0:00:39] ...Nf3+ is the strong threat.} 31. Re3 {[%emt 0:04:57]} Nf3+ $2 {[%emt 0:03:03] [#]} (31... Bf3 32. Qf1 Be4 33. Ne7+ (33. Rxh3 Nxh3+ 34. Qxh3 gxh3 $16) 33... Kh7 34. Qxh3 (34. Rxh3 Nxh3+ 35. Qxh3 gxh3 $14) 34... Nxh3+ 35. Kf1 f5) 32. Rxf3 $1 {[%emt 0:00:05]} Qxf3 {[%emt 0:00:37]} (32... Bxf3 33. Nh6+) 33. Ne7+ {[%emt 0:04:44]} Kh7 {[%emt 0:00:33]} 34. Qd6 {[%emt 0:03:06] Threatening mate with Bd3+.} f6 {[%emt 0:01:30]} 35. Bd3+ {[%emt 0:00:49]} Kg7 {[%emt 0:00:15]} 36. Nf5+ {[%emt 0:00:18]} ({Stronger than} 36. Ng6 Qd1+ 37. Kxg2 Qf3+ 38. Kg1 Qd1+ 39. Kg2 Qf3+ 40. Kg1 Qd1+ 41. Kg2 $11) 36... Kg8 {[%emt 0:00:07]} 37. Bc4+ {[%emt 0:00:20]} Rf7 {[%emt 0:00:53]} 38. Bxf7+ {[%emt 0:00:09]} Kxf7 {[%emt 0:00:07]} 39. Qe7+ {[%emt 0:00:08] Weighted Error Value: White=0.16 (very precise) /Black=0.50} 1-0